lending/lending_fUSD_20250808
["ID","MTS","AMOUNT","RATE_DAILY","PERIOD"]
[377959279,1754628644624,-400.0,0.00018885,2]
[377959281,1754628644633,-1212.54,0.00018885,2]
[377959283,1754628644642,-400.0,0.00018885,2]
[377959285,1754628644651,-400.0,0.00018885,2]
[377959287,1754628644660,-983.34,0.00018885,2]
[377959290,1754628644669,-667.3,0.00018885,2]
[377959292,1754628644679,-663.05,0.00018885,2]
[377959294,1754628644688,-400.0,0.00018885,2]
[377959296,1754628644697,-400.0,0.00018885,2]
[377959298,1754628644706,-644.42,0.00018885,2]
[377959300,1754628644715,-1114.01,0.00018885,2]
[377959302,1754628644724,-788.51,0.00018885,2]
[377959303,1754628644733,-963.53,0.00018885,2]
[377959306,1754628644743,-400.0,0.00018885,2]
[377959308,1754628644753,-536.64,0.00018885,2]
[377959309,1754628644762,-400.0,0.00018885,2]
[377959311,1754628644771,-400.0,0.00018885,2]
[377959314,1754628644781,-400.0,0.00018885,2]
[377959316,1754628644791,-620.16,0.00018885,2]
[377959318,1754628644800,-847.64,0.00018885,2]
[377959320,1754628644809,-400.0,0.00018885,2]
[377959322,1754628644818,-400.0,0.00018885,2]
[377959323,1754628644827,-800.66,0.00018885,2]
[377959325,1754628644836,-399.99684908,0.00018885,2]
[377959326,1754628644846,-494.71,0.00018885,2]
[377959328,1754628644856,-488.53,0.00018885,2]
[377959330,1754628644867,-400.0,0.00018885,2]
[377959332,1754628644876,-896.25,0.00018885,2]
[377959334,1754628644885,-400.0,0.00018885,2]
[377959336,1754628644895,-400.0,0.00018885,2]
[377959339,1754628644904,-400.0,0.00018885,2]
[377959340,1754628644914,-400.0,0.00018885,2]
[377959342,1754628644923,-983.58,0.00018885,2]
[377959344,1754628644933,-1165.61,0.00018885,2]
[377959346,1754628644943,-573.53,0.00018885,2]
[377959348,1754628644952,-802.85,0.00018885,2]
[377959350,1754628644961,-400.0,0.00018885,2]
[377959352,1754628644973,-400.0,0.00018885,2]
[377959354,1754628644982,-1070.16,0.00018885,2]
[377959356,1754628644992,-400.0,0.00018885,2]
[377959358,1754628645002,-779.61,0.00018885,2]
[377959360,1754628645011,-400.0,0.00018885,2]
[377959362,1754628645021,-400.0,0.00018885,2]
[377959364,1754628645031,-431.06,0.00018885,2]
[377959366,1754628645040,-637.96,0.00018885,2]
[377959368,1754628645051,-881.99,0.00018885,2]
[377959370,1754628645061,-400.0,0.00018885,2]
[377959372,1754628645071,-406.94,0.00018885,2]
[377959374,1754628645081,-738.58,0.00018885,2]
[377959376,1754628645091,-482.0,0.00018885,2]
[377959378,1754628645100,-535.62,0.00018885,2]
[377959380,1754628645109,-400.0,0.00018885,2]
[377959382,1754628645118,-1294.59,0.00018885,2]
[377959384,1754628645127,-400.0,0.00018885,2]
[377959386,1754628645137,-400.0,0.00018885,2]
[377959388,1754628645146,-1287.93,0.00018885,2]
[377959390,1754628645155,-400.0,0.00018885,2]
[377959392,1754628645164,-484.62,0.00018885,2]
[377959394,1754628645174,-400.0,0.00018885,2]
[377959396,1754628645184,-400.0,0.00018885,2]
[377959398,1754628645193,-400.0,0.00018885,2]
[377959400,1754628645202,-852.97,0.00018885,2]
[377959402,1754628645212,-400.0,0.00018885,2]
[377959404,1754628645221,-478.24,0.00018885,2]
[377959405,1754628645231,-927.54,0.00018885,2]
[377959407,1754628645242,-400.0,0.00018885,2]
[377959409,1754628645252,-942.24,0.00018885,2]
[377959411,1754628645261,-414.73,0.00018885,2]
[377959413,1754628645270,-1441.38,0.00018885,2]
[377959415,1754628645279,-680.04,0.00018885,2]
[377959417,1754628645288,-403.66,0.00018885,2]
[377959419,1754628645298,-816.44,0.00018885,2]
[377959421,1754628645307,-400.0,0.00018885,2]
[377959423,1754628645316,-954.18,0.00018885,2]
[377959425,1754628645325,-400.0,0.00018885,2]
[377959427,1754628645335,-853.38,0.00018885,2]
[377959429,1754628645345,-996.88,0.00018885,2]
[377959431,1754628645354,-400.0,0.00018885,2]
[377959433,1754628645363,-400.0,0.00018885,2]
[377959435,1754628645372,-400.0,0.00018885,2]
[377959437,1754628645381,-400.0,0.00018885,2]
[377959439,1754628645391,-400.0,0.00018885,2]
[377959441,1754628645400,-663.49,0.00018885,2]
[377959442,1754628645409,-519.06,0.00018885,2]
[377959443,1754628645418,-400.0,0.00018885,2]
[377959444,1754628645427,-481.91284554,0.00018885,2]
[377959445,1754628645437,-1411.87,0.00018885,2]
[377959446,1754628645446,-647.57,0.00018885,2]
[377959447,1754628645455,-731.56,0.00018885,2]
[377959448,1754628645464,-400.0,0.00018885,2]
[377959449,1754628645474,-634.5,0.00018885,2]
[377959450,1754628645483,-400.0,0.00018885,2]
[377959451,1754628645492,-400.0,0.00018885,2]
[377959452,1754628645501,-1073.55,0.00018885,2]
[377959453,1754628645510,-628.04,0.00018885,2]
[377959454,1754628645520,-400.0,0.00018885,2]
[377959455,1754628645529,-1206.28,0.00018885,2]
[377959456,1754628645538,-1497.09,0.00018885,2]
[377959457,1754628645548,-400.0,0.00018885,2]
[377959458,1754628645558,-647.46,0.00018885,2]
[377959459,1754628645567,-400.0,0.00018885,2]
[377959461,1754628645576,-1156.06,0.00018885,2]
[377959463,1754628645586,-400.0,0.00018885,2]
[377959465,1754628645595,-786.7,0.00018885,2]
[377959467,1754628645604,-451.24,0.00018885,2]
[377959469,1754628645613,-262.96,0.00018885,2]
[377959471,1754628645622,-400.0,0.00018885,2]
[377959472,1754628645631,-1333.51,0.00018885,2]
[377959473,1754628645640,-956.12,0.00018885,2]
[377959474,1754628645649,-400.0,0.00018885,2]
[377959475,1754628645658,-948.28,0.00018885,2]
[377959476,1754628645667,-1426.34,0.00018885,2]
[377959477,1754628645676,-400.0,0.00018885,2]
[377959478,1754628645685,-400.0,0.00018885,2]
[377959479,1754628645695,-400.0,0.00018885,2]
[377959480,1754628645703,-400.0,0.00018885,2]
[377959481,1754628645713,-400.0,0.00018885,2]
[377959482,1754628645722,-400.0,0.00018885,2]
[377959483,1754628645731,-1439.8,0.00018885,2]
[377959484,1754628645741,-400.0,0.00018885,2]
[377959485,1754628645751,-400.0,0.00018885,2]
[377959486,1754628645760,-400.0,0.00018885,2]
[377959487,1754628645769,-400.0,0.00018885,2]
[377959488,1754628645778,-820.72,0.00018885,2]
[377959489,1754628645788,-400.0,0.00018885,2]
[377959490,1754628645797,-400.0,0.00018885,2]
[377959491,1754628645806,-443.25,0.00018885,2]
[377959492,1754628645816,-400.0,0.00018885,2]
[377959493,1754628645825,-400.0,0.00018885,2]
[377959494,1754628645835,-490.32,0.00018885,2]
[377959495,1754628645844,-821.83,0.00018885,2]
[377959496,1754628645854,-1787.62,0.00018885,2]
[377959497,1754628645863,-400.0,0.00018885,2]
[377959498,1754628645872,-798.03,0.00018885,2]
[377959499,1754628645882,-804.44,0.00018885,2]
[377959500,1754628645891,-400.0,0.00018885,2]
[377959501,1754628645900,-749.74,0.00018885,2]
[377959502,1754628645909,-400.0,0.00018885,2]
[377959503,1754628645918,-400.0,0.00018885,2]
[377959504,1754628645927,-400.0,0.00018885,2]
[377959505,1754628645937,-707.53,0.00018885,2]
[377959507,1754628645946,-1844.79,0.00018885,2]
[377959509,1754628645955,-448.81,0.00018885,2]
[377959511,1754628645964,-400.0,0.00018885,2]
[377959513,1754628645978,-954.3,0.00018885,2]
[377959515,1754628645987,-400.0,0.00018885,2]
[377959517,1754628645997,-1507.36,0.00018885,2]
[377959519,1754628646006,-400.0,0.00018885,2]
[377959521,1754628646015,-400.0,0.00018885,2]
[377959523,1754628646025,-1305.15,0.00018885,2]
[377959525,1754628646034,-484.05,0.00018885,2]
[377959527,1754628646043,-400.0,0.00018885,2]
[377959529,1754628646053,-513.71408075,0.00018885,2]
[377959530,1754628646063,-770.33,0.00018885,2]
[377959532,1754628646072,-447.76420032,0.00018885,2]
[377959534,1754628646081,-490.46,0.00018885,2]
[377959536,1754628646090,-420.75,0.00018885,2]
[377959538,1754628646099,-1868.85,0.00018885,2]
[377959540,1754628646108,-979.89,0.00018885,2]
[377959541,1754628646118,-1237.35,0.00018885,2]
[377959542,1754628646127,-1217.19,0.00018885,2]
[377959543,1754628646138,-1363.03,0.00018885,2]
[377959544,1754628646147,-572.75,0.00018885,2]
[377959545,1754628646156,-400.0,0.00018885,2]
[377959546,1754628646165,-400.0,0.00018885,2]
[377959547,1754628646174,-397.38116193,0.00018885,2]
[377959548,1754628646183,-1288.35,0.00018885,2]
[377959549,1754628646192,-400.0,0.00018885,2]
[377959550,1754628646201,-1682.44,0.00018885,2]
[377959551,1754628646210,-414.5,0.00018885,2]
[377959552,1754628646219,-400.0,0.00018885,2]
[377959553,1754628646229,-772.51,0.00018885,2]
[377959554,1754628646238,-776.87,0.00018885,2]
[377959555,1754628646247,-400.0,0.00018885,2]
[377959556,1754628646257,-1125.72,0.00018885,2]
[377959557,1754628646266,-845.2,0.00018885,2]
[377959558,1754628646274,-805.64,0.00018885,2]
[377959559,1754628646284,-400.0,0.00018885,2]
[377959560,1754628646293,-400.0,0.00018885,2]
[377959561,1754628646302,-806.99,0.00018885,2]
[377959562,1754628646311,-655.67,0.00018885,2]
[377959563,1754628646321,-400.0,0.00018885,2]
[377959564,1754628646330,-829.5,0.00018885,2]
[377959565,1754628646339,-400.0,0.00018885,2]
[377959566,1754628646348,-1378.93,0.00018885,2]
[377959567,1754628646357,-438.08,0.00018885,2]
[377959568,1754628646366,-400.0,0.00018885,2]
[377959569,1754628646376,-716.52,0.00018885,2]
[377959570,1754628646386,-689.76,0.00018885,2]
[377959571,1754628646395,-1108.04,0.00018885,2]
[377959572,1754628646405,-400.0,0.00018885,2]
[377959573,1754628646414,-937.2,0.00018885,2]
[377959574,1754628646423,-1469.63,0.00018885,2]
[377959575,1754628646434,-400.0,0.00018885,2]
[377959576,1754628646444,-637.02,0.00018885,2]
[377959577,1754628646454,-400.0,0.00018885,2]
[377959587,1754628646692,-525.28,0.00018885,2]
[377959589,1754628646702,-400.0,0.00018885,2]
[377959591,1754628646711,-532.71,0.00018885,2]
[377959593,1754628646721,-400.0,0.00018885,2]
[377959595,1754628646731,-766.13,0.00018885,2]
[377959597,1754628646740,-1068.39,0.00018885,2]
[377959599,1754628646750,-400.0,0.00018885,2]
[377959601,1754628646759,-400.0,0.00018885,2]
[377959603,1754628646769,-1877.83,0.00018885,2]
[377959605,1754628646778,-496.01,0.00018885,2]
[377959607,1754628646787,-652.78,0.00018885,2]
[377959609,1754628646796,-400.0,0.00018885,2]
[377959611,1754628646808,-534.81,0.00018885,2]
[377959613,1754628646818,-400.0,0.00018885,2]
[377959615,1754628646827,-400.0,0.00018885,2]
[377959617,1754628646836,-576.08,0.00018885,2]
[377959619,1754628646845,-521.04,0.00018885,2]
[377959621,1754628646854,-750.21,0.00018885,2]
[377959623,1754628646863,-916.81,0.00018885,2]
[377959624,1754628646873,-765.71,0.00018885,2]
[377959626,1754628646882,-576.15,0.00018885,2]
[377959628,1754628646892,-657.73,0.00018885,2]
[377959630,1754628646901,-1203.98,0.00018885,2]
[377959632,1754628646910,-441.05,0.00018885,2]
[377959634,1754628646919,-829.79,0.00018885,2]
[377959636,1754628646929,-1234.24,0.00018885,2]
[377959638,1754628646938,-533.89,0.00018885,2]
[377959640,1754628646948,-525.06,0.00018885,2]
[377959642,1754628646957,-400.0,0.00018885,2]
[377959644,1754628646966,-400.0,0.00018885,2]
[377959646,1754628646980,-854.83,0.00018885,2]
[377959648,1754628646989,-331.16112963,0.00018885,2]
[377959650,1754628646999,-400.0,0.00018885,2]
[377959652,1754628647008,-400.0,0.00018885,2]
[377959654,1754628647018,-400.0,0.00018885,2]
[377959656,1754628647027,-734.32,0.00018885,2]
[377959658,1754628647036,-400.0,0.00018885,2]
[377959660,1754628647046,-400.0,0.00018885,2]
[377959662,1754628647056,-400.0,0.00018885,2]
[377959664,1754628647065,-400.0,0.00018885,2]
[377959666,1754628647075,-400.0,0.00018885,2]
[377959668,1754628647084,-611.18,0.00018885,2]
[377959670,1754628647093,-559.78,0.00018885,2]
[377959672,1754628647103,-1488.44,0.00018885,2]
[377959674,1754628647112,-437.09,0.00018885,2]
[377959676,1754628647121,-1041.67,0.00018885,2]
[377959678,1754628647130,-788.37,0.00018885,2]
[377959680,1754628647141,-400.0,0.00018885,2]
[377959682,1754628647151,-400.0,0.00018885,2]
[377959684,1754628647160,-400.0,0.00018885,2]
[377959686,1754628647169,-400.0,0.00018885,2]
[377959688,1754628647179,-400.0,0.00018885,2]
[377959689,1754628647188,-400.0,0.00018885,2]
[377959691,1754628647197,-400.0,0.00018885,2]
[377959693,1754628647206,-400.0,0.00018885,2]
[377959695,1754628647215,-400.0,0.00018885,2]
[377959697,1754628647225,-844.6,0.00018885,2]
[377959699,1754628647234,-400.0,0.00018885,2]
[377959701,1754628647243,-776.03,0.00018885,2]
[377959703,1754628647252,-1016.63,0.00018885,2]
[377959705,1754628647262,-400.0,0.00018885,2]
[377959707,1754628647272,-400.0,0.00018885,2]
[377959709,1754628647281,-400.0,0.00018885,2]
[377959711,1754628647290,-606.97,0.00018885,2]
[377959713,1754628647300,-400.0,0.00018885,2]
[377959715,1754628647310,-1879.04,0.00018885,2]
[377959717,1754628647319,-400.0,0.00018885,2]
[377959719,1754628647329,-400.0,0.00018885,2]
[377959721,1754628647339,-1057.46,0.00018885,2]
[377959723,1754628647349,-2103.43,0.00018885,2]
[377959725,1754628647359,-186.67082486,0.00018885,2]
[377959727,1754628647368,-400.32,0.00018885,2]
[377959728,1754628647377,-400.0,0.00018885,2]
[377959730,1754628647388,-1167.06,0.00018885,2]
[377959732,1754628647397,-641.22,0.00018885,2]
[377959734,1754628647407,-400.0,0.00018885,2]
[377959736,1754628647416,-400.0,0.00018885,2]
[377959738,1754628647426,-400.0,0.00018885,2]
[377959741,1754628647436,-400.0,0.00018885,2]
[377959743,1754628647447,-400.0,0.00018885,2]
[377959744,1754628647457,-400.0,0.00018885,2]
[377959746,1754628647467,-400.0,0.00018885,2]
[377959748,1754628647476,-374.57495206,0.00018885,2]
[377959750,1754628647486,-1222.73,0.00018885,2]
[377959752,1754628647495,-400.0,0.00018885,2]
[377959754,1754628647505,-537.42,0.00018885,2]
[377959756,1754628647514,-400.0,0.00018885,2]
[377959758,1754628647524,-1142.47,0.00018885,2]
[377959760,1754628647534,-400.0,0.00018885,2]
[377959762,1754628647543,-610.08,0.00018885,2]
[377959764,1754628647552,-986.92,0.00018885,2]
[377959766,1754628647561,-400.0,0.00018885,2]
[377959768,1754628647571,-400.0,0.00018885,2]
[377959770,1754628647580,-400.0,0.00018885,2]
[377959772,1754628647590,-1112.28,0.00018885,2]
[377959774,1754628647599,-1480.77,0.00018885,2]
[377959776,1754628647609,-895.11,0.00018885,2]
[377959778,1754628647619,-702.56,0.00018885,2]
[377959780,1754628647628,-400.0,0.00018885,2]
[377959782,1754628647636,-400.0,0.00018885,2]
[377959784,1754628647646,-827.49,0.00018885,2]
[377959786,1754628647655,-676.29,0.00018885,2]
[377959788,1754628647664,-400.0,0.00018885,2]
[377959790,1754628647674,-458.16,0.00018885,2]
[377959792,1754628647683,-700.72,0.00018885,2]
[377959794,1754628647693,-445.23,0.00018885,2]
[377959796,1754628647703,-657.82,0.00018885,2]
[377959797,1754628647712,-400.0,0.00018885,2]
[377959799,1754628647722,-422.10580486,0.00018885,2]
[377959801,1754628647731,-414.69,0.00018885,2]
[377959802,1754628647741,-400.0,0.00018885,2]
[377959804,1754628647750,-447.96,0.00018885,2]
[377959806,1754628647760,-468.5,0.00018885,2]
[377959809,1754628647770,-400.0,0.00018885,2]
[377959811,1754628647779,-1238.52,0.00018885,2]
[377959812,1754628647788,-824.75,0.00018885,2]
[377959814,1754628647798,-783.28,0.00018885,2]
[377959816,1754628647807,-413.85,0.00018885,2]
[377959818,1754628647816,-400.0,0.00018885,2]
[377959821,1754628647826,-400.0,0.00018885,2]
[377959822,1754628647835,-520.14,0.00018885,2]
[377959824,1754628647845,-400.0,0.00018885,2]
[377959826,1754628647854,-400.0,0.00018885,2]
[377959828,1754628647863,-921.83,0.00018885,2]
[377959830,1754628647872,-400.0,0.00018885,2]
[377959832,1754628647881,-401.83,0.00018885,2]
[377959834,1754628647891,-1032.54,0.00018885,2]
[377959836,1754628647901,-400.0,0.00018885,2]
[377959838,1754628647910,-400.0,0.00018885,2]
[377959840,1754628647919,-400.0,0.00018885,2]
[377959842,1754628647928,-450.58,0.00018885,2]
[377959844,1754628647938,-1072.48,0.00018885,2]
[377959846,1754628647948,-1568.12,0.00018885,2]
[377959848,1754628647957,-400.0,0.00018885,2]
[377959850,1754628647967,-400.0,0.00018885,2]
[377959852,1754628647981,-400.0,0.00018885,2]
[377959854,1754628647990,-936.26,0.00018885,2]
[377959856,1754628648000,-400.0,0.00018885,2]
[377959857,1754628648010,-369.72112328,0.00018885,2]
[377959859,1754628648020,-400.0,0.00018885,2]
[377959861,1754628648030,-2200.5,0.00018885,2]
[377959863,1754628648039,-816.46,0.00018885,2]
[377959864,1754628648052,-1018.27,0.00018885,2]
[377959865,1754628648063,-983.52,0.00018885,2]
[377959866,1754628648072,-1123.05,0.00018885,2]
[377959867,1754628648082,-854.29,0.00018885,2]
[377959868,1754628648091,-357.64747752,0.00018885,2]
[377959869,1754628648101,-400.0,0.00018885,2]
[377959870,1754628648111,-400.0,0.00018885,2]
[377959871,1754628648120,-400.0,0.00018885,2]
[377959872,1754628648130,-1183.41,0.00018885,2]
[377959873,1754628648140,-747.41,0.00018885,2]
[377959874,1754628648150,-885.27,0.00018885,2]
[377959875,1754628648159,-841.59,0.00018885,2]
[377959876,1754628648169,-400.0,0.00018885,2]
[377959877,1754628648178,-400.0,0.00018885,2]
[377959878,1754628648188,-1002.43,0.00018885,2]
[377959879,1754628648200,-400.0,0.00018885,2]
[377959880,1754628648210,-400.0,0.00018885,2]
[377959881,1754628648219,-470.49,0.00018885,2]
[377959882,1754628648229,-400.0,0.00018885,2]
[377959883,1754628648239,-400.0,0.00018885,2]
[377959884,1754628648249,-400.0,0.00018885,2]
[377959885,1754628648259,-791.2,0.00018885,2]
[377959886,1754628648269,-1206.95,0.00018885,2]
[377959887,1754628648278,-400.0,0.00018885,2]
[377959888,1754628648288,-689.28,0.00018885,2]
[377959889,1754628648297,-400.0,0.00018885,2]
[377959890,1754628648307,-1425.75,0.00018885,2]
[377959891,1754628648317,-400.0,0.00018885,2]
[377959892,1754628648327,-400.0,0.00018885,2]
[377959893,1754628648336,-830.84,0.00018885,2]
[377959894,1754628648347,-1191.31,0.00018885,2]
[377959895,1754628648357,-400.0,0.00018885,2]
[377959896,1754628648367,-400.0,0.00018885,2]
[377959897,1754628648377,-400.0,0.00018885,2]
[377959898,1754628648386,-1121.89,0.00018885,2]
[377959899,1754628648396,-467.64,0.00018885,2]
[377959900,1754628648406,-401.831777,0.00018886,2]
[377959901,1754628648416,-175.09062749,0.00018886,2]
[377959902,1754628648426,-400.0,0.00018886,2]
[377959903,1754628648437,-400.0,0.00018886,2]
[377959904,1754628648452,-434.44,0.00018886,2]
[377959905,1754628648462,-649.3,0.00018886,2]
[377959906,1754628648472,-400.0,0.00018886,2]
[377959907,1754628648483,-400.0,0.00018886,2]
[377959908,1754628648494,-400.0,0.00018886,2]
[377959909,1754628648504,-400.0,0.00018886,2]
[377959910,1754628648514,-450.99,0.00018886,2]
[377959911,1754628648526,-715.3,0.00018886,2]
[377959912,1754628648536,-1006.86,0.00018886,2]
[377959913,1754628648547,-400.0,0.00018886,2]
[377959914,1754628648558,-909.34,0.00018886,2]
[377959915,1754628648568,-400.0,0.00018886,2]
[377959916,1754628648578,-400.0,0.00018886,2]
[377959917,1754628648588,-468.69,0.00018886,2]
[377959918,1754628648598,-400.0,0.00018886,2]
[377959919,1754628648607,-400.0,0.00018886,2]
[377959920,1754628648616,-1183.19,0.00018886,2]
[377959921,1754628648626,-850.23,0.00018886,2]
[377959922,1754628648635,-1881.54,0.00018886,2]
[377959923,1754628648645,-905.89,0.00018886,2]
[377959924,1754628648654,-517.66,0.00018886,2]
[377959925,1754628648664,-954.95,0.00018886,2]
[377959926,1754628648673,-400.0,0.00018886,2]
[377959927,1754628648683,-400.0,0.00018886,2]
[377959928,1754628648695,-1416.42,0.00018886,2]
[377959929,1754628648704,-1803.46,0.00018886,2]
[377959930,1754628648715,-400.0,0.00018886,2]
[377959931,1754628648725,-1532.16,0.00018886,2]
[377959932,1754628648735,-1436.91,0.00018886,2]
[377959933,1754628648745,-1363.76,0.00018886,2]
[377959934,1754628648755,-1341.03,0.00018886,2]
[377959935,1754628648766,-796.19,0.00018886,2]
[377959936,1754628648775,-1157.54,0.00018886,2]
[377959937,1754628648784,-1133.66,0.00018886,2]
[377959938,1754628648794,-1223.83,0.00018886,2]
[377959939,1754628648804,-630.19,0.00018886,2]
[377959940,1754628648814,-643.4,0.00018886,2]
[377959941,1754628648823,-1148.6,0.00018886,2]
[377959942,1754628648832,-1189.31,0.00018886,2]
[377959943,1754628648842,-400.0,0.00018886,2]
[377959944,1754628648851,-400.0,0.00018886,2]
[377959945,1754628648860,-892.67,0.00018886,2]
[377959946,1754628648870,-1488.5,0.00018886,2]
[377959947,1754628648879,-400.0,0.00018886,2]
[377959948,1754628648888,-1618.0,0.00018886,2]
[377959949,1754628648898,-1450.16,0.00018886,2]
[377959950,1754628648908,-1514.57,0.00018886,2]
[377959951,1754628648918,-838.08,0.00018886,2]
[377959952,1754628648927,-515.81,0.00018886,2]
[377959953,1754628648937,-1228.99,0.00018886,2]
[377959954,1754628648948,-400.0,0.00018886,2]
[377959955,1754628648957,-400.0,0.00018886,2]
[377959956,1754628648967,-713.16,0.00018886,2]
[377959957,1754628648982,-400.0,0.00018886,2]
[377959958,1754628648992,-400.0,0.00018886,2]
[377959959,1754628649001,-1168.36,0.00018886,2]
[377959960,1754628649011,-1588.13,0.00018886,2]
[377959961,1754628649021,-851.96,0.00018886,2]
[377959962,1754628649031,-400.0,0.00018886,2]
[377959963,1754628649129,-890.08,0.00018886,2]
[377959964,1754628649138,-886.71,0.00018886,2]
[377959965,1754628649148,-400.0,0.00018886,2]
[377959966,1754628649157,-537.41,0.00018886,2]
[377959967,1754628649166,-1206.96,0.00018886,2]
[377959968,1754628649176,-947.03,0.00018886,2]
[377959969,1754628649185,-441.42041873,0.00018887,2]
[377959970,1754628649195,-150.0,0.00018897,2]
[377959971,1754628649204,-943.18923535,0.000189,3]
[377959972,1754628649213,-401.62511772,0.000189,2]
[377959973,1754628649222,-161.67905219,0.000189,2]
[377959974,1754628649231,-153.67129268,0.000189,2]
[377959975,1754628649240,-227.99784044,0.000189,3]
[377959976,1754628649249,-431.23719906,0.000189,2]
[377959977,1754628649258,-441.42041873,0.000189,2]
[377959978,1754628649267,-3759.0741861,0.000189,2]
[377959979,1754628649276,-668.86585226,0.000189,2]
[377959980,1754628649285,-150.0,0.0001897,2]
[377959981,1754628649295,-502.22534721,0.00018973,2]
[377959982,1754628649304,-502.31087165,0.00018973,2]
[377959983,1754628649313,-262.35744288,0.00018973,2]
[377959984,1754628649322,-500.0,0.00018973,2]
[377959985,1754628649331,-500.0,0.00018973,2]
[377959986,1754628649341,-500.0,0.00018973,2]
[377959987,1754628649350,-500.0,0.00018973,2]
[377959988,1754628649359,-500.0,0.00018973,2]
[377959989,1754628649368,-500.0,0.00018973,2]
[377959990,1754628649377,-500.0,0.00018973,2]
[377959991,1754628649387,-500.0,0.00018973,2]
[377959992,1754628649396,-500.0,0.00018973,2]
[377959993,1754628649406,-500.0,0.00018973,2]
[377959994,1754628649415,-429.50565486,0.00018973,2]
[377959995,1754628649425,-350.0,0.00018981,2]
[377959996,1754628649434,-150.0,0.00018986,2]
[377959997,1754628649445,-3759.07418608,0.00018987,2]
[377959998,1754628649454,-160.0,0.00018989,2]
[377959999,1754628649464,-500.0,0.00018989,2]
[377960000,1754628649474,-151.0,0.00018989,2]
[377960001,1754628649484,-151.0,0.00018989,2]
[377960002,1754628649493,-151.0,0.00018989,2]
[377960003,1754628649503,-151.0,0.00018989,2]
[377960004,1754628649512,-600.0,0.00018989,2]
[377960005,1754628649521,-600.0,0.00018989,2]
[377960006,1754628649533,-600.0,0.00018989,2]
[377960007,1754628649542,-600.0,0.00018989,2]
[377960008,1754628649551,-600.0,0.00018989,2]
[377960009,1754628649561,-626.44,0.00018999,2]
[377960010,1754628649571,-400.0,0.00018999,2]
[377960011,1754628649580,-410.55,0.00018999,2]
[377960012,1754628649590,-400.0,0.00018999,2]
[377960013,1754628649599,-400.0,0.00018999,2]
[377960014,1754628649608,-400.0,0.00018999,2]
[377960015,1754628649618,-400.0,0.00018999,2]
[377960016,1754628649627,-400.0,0.00018999,2]
[377960017,1754628649636,-798.82,0.00018999,2]
[377960018,1754628649645,-400.0,0.00018999,2]
[377960019,1754628649654,-400.0,0.00018999,2]
[377960020,1754628649664,-2359.9,0.00018999,2]
[377960021,1754628649673,-834.5,0.00018999,2]
[377960022,1754628649682,-783.77,0.00018999,2]
[377960023,1754628649692,-1000.58,0.00018999,2]
[377960024,1754628649701,-540.78,0.00018999,2]
[377960025,1754628649710,-1349.2,0.00018999,2]